fUSD/lending_fUSD_20240419
["ID","MTS","AMOUNT","RATE_DAILY","PERIOD"]
[322905282,1713491456471,-738.06,0.00016438,2]
[322905283,1713491456481,-500.0,0.00016438,2]
[322905284,1713491456491,-500.0,0.00016438,2]
[322905285,1713491456501,-500.0,0.00016438,2]
[322905286,1713491456510,-500.0,0.00016438,2]
[322905287,1713491456520,-950.93,0.00016438,2]
[322905288,1713491456531,-304.88266711,0.00016438,2]
[322905289,1713491456542,-2359.08,0.00016438,2]
[322905290,1713491456552,-603.22,0.00016438,2]
[322905291,1713491456563,-1040.26,0.00016438,2]
[322905292,1713491456572,-500.0,0.00016438,2]
[322905293,1713491456582,-500.0,0.00016438,2]
[322905294,1713491456593,-3392.21444746,0.00016438,2]
[322905295,1713491456606,-1594.27606038,0.00016438,2]
[322905296,1713491456639,-990.21171163,0.00016438,2]
[322905297,1713491456652,-4211.55572563,0.00016438,2]
[322905298,1713491456665,-1458.45418322,0.00016438,2]
[322905299,1713491456678,-32106.73787168,0.00016438,2]
[322905300,1713491456688,-500.0,0.00016438,2]
[322905301,1713491456697,-504.1033762,0.00016438,2]
[322905302,1713491456707,-6114.63,0.00016438,2]
[322905303,1713491456716,-500.0,0.00016438,2]
[322905304,1713491456729,-500.0,0.00016438,2]
[322905305,1713491456739,-500.0,0.00016438,2]
[322905306,1713491456748,-500.0,0.00016438,2]
[322905307,1713491456758,-1442.44,0.00016438,2]
[322905308,1713491456767,-500.0,0.00016438,2]
[322905309,1713491456777,-1367.55,0.00016438,2]
[322905310,1713491456788,-791.98,0.00016438,2]
[322905311,1713491456798,-9074.79,0.00016438,2]
[322905312,1713491456807,-500.0,0.00016438,2]
[322905313,1713491456817,-5212.16,0.00016438,2]
[322905314,1713491456828,-3552.98,0.00016438,2]
[322905315,1713491456837,-634.92,0.00016438,2]
[322905316,1713491456847,-500.0,0.00016438,2]
[322905317,1713491456857,-500.0,0.00016438,2]
[322905318,1713491456867,-304.50851851,0.00016438,2]
[322905319,1713491456877,-500.0,0.00016438,2]
[322905320,1713491456889,-500.0,0.00016438,2]
[322905321,1713491456898,-500.0,0.00016438,2]
[322905322,1713491456908,-818.78,0.00016438,2]
[322905323,1713491456917,-535.34,0.00016438,2]
[322905324,1713491456926,-896.38,0.00016438,2]
[322905325,1713491456936,-1583.3,0.00016438,2]
[322905326,1713491456946,-2020.27,0.00016438,2]
[322905327,1713491456957,-11954.09,0.00016438,2]
[322905328,1713491456967,-1118.98,0.00016438,2]
[322905329,1713491456978,-685.16,0.00016438,2]
[322905330,1713491456987,-1848.67,0.00016438,2]
[322905331,1713491456997,-500.0,0.00016438,2]
[322905332,1713491457006,-500.0,0.00016438,2]
[322905333,1713491457016,-1296.15,0.00016438,2]
[322905334,1713491457027,-1948.64,0.00016438,2]
[322905335,1713491457037,-7251.02,0.00016438,2]
[322905336,1713491457048,-500.0,0.00016438,2]
[322905337,1713491457058,-563.88906484,0.00016438,2]
[322905338,1713491457068,-3794.76,0.00016438,2]
[322905339,1713491457079,-500.0,0.00016438,2]
[322905340,1713491457088,-1262.37,0.00016438,2]
[322905341,1713491457099,-5774.36,0.00016438,2]
[322905342,1713491457110,-10445.17,0.00016438,2]
[322905343,1713491457120,-500.0,0.00016438,2]
[322905344,1713491457130,-500.0,0.00016438,2]
[322905345,1713491457140,-836.86,0.00016438,2]
[322905346,1713491457150,-1387.28,0.00016438,2]
[322905347,1713491457160,-500.0,0.00016438,2]
[322905348,1713491457171,-32445.76,0.00016438,2]
[322905349,1713491457181,-2583.32,0.00016438,2]
[322905350,1713491457191,-1891.32,0.00016438,2]
[322905351,1713491457201,-500.0,0.00016438,2]
[322905352,1713491457212,-500.0,0.00016438,2]
[322905353,1713491457224,-1774.82,0.00016438,2]
[322905354,1713491457234,-2580.27,0.00016438,2]
[322905355,1713491457244,-500.0,0.00016438,2]
[322905356,1713491457253,-760.91373,0.00016438,2]
[322905357,1713491457263,-1397.02,0.00016438,2]
[322905358,1713491457274,-760.91373,0.00016438,2]
[322905359,1713491457286,-500.0,0.00016438,2]
[322905360,1713491457296,-760.91373,0.00016438,2]
[322905361,1713491457306,-910.82,0.00016438,2]
[322905362,1713491457316,-500.0,0.00016438,2]
[322905363,1713491457326,-760.91373,0.00016438,2]
[322905364,1713491457336,-760.91373,0.00016438,2]
[322905365,1713491457345,-760.91373,0.00016438,2]
[322905366,1713491457354,-2108.88,0.00016438,2]
[322905367,1713491457364,-760.91373,0.00016438,2]
[322905368,1713491457374,-2625.58,0.00016438,2]
[322905369,1713491457385,-760.91373,0.00016438,2]
[322905370,1713491457396,-760.91373,0.00016438,2]
[322905371,1713491457408,-500.0,0.00016438,2]
[322905372,1713491457418,-5802.57,0.00016438,2]
[322905373,1713491457428,-500.0,0.00016438,2]
[322905374,1713491457438,-500.0,0.00016438,2]
[322905375,1713491457448,-760.91373,0.00016438,2]
[322905376,1713491457459,-16833.87,0.00016438,2]
[322905377,1713491457468,-500.0,0.00016438,2]
[322905378,1713491457480,-760.91373,0.00016438,2]
[322905379,1713491457490,-760.91373,0.00016438,2]
[322905380,1713491457500,-500.0,0.00016438,2]
[322905381,1713491457510,-760.91373,0.00016438,2]
[322905382,1713491457521,-500.0,0.00016438,2]
[322905383,1713491457531,-760.91373,0.00016438,2]
[322905384,1713491457542,-574.94,0.00016438,2]
[322905385,1713491457551,-760.91373,0.00016438,2]
[322905386,1713491457562,-760.91373,0.00016438,2]
[322905387,1713491457575,-760.91373,0.00016438,2]
[322905388,1713491457585,-8912.73,0.00016438,2]
[322905389,1713491457596,-760.91373,0.00016438,2]
[322905390,1713491457607,-927.51954,0.00016438,2]
[322905391,1713491457617,-272.49327327,0.00016438,2]
[322905392,1713491457627,-500.0,0.00016438,2]
[322905393,1713491457637,-500.0,0.00016438,2]
[322905394,1713491457647,-927.51954,0.00016438,2]
[322905395,1713491457658,-500.0,0.00016438,2]
[322905396,1713491457668,-927.51954,0.00016438,2]
[322905397,1713491457679,-500.0,0.00016438,2]
[322905398,1713491457688,-759.89,0.00016438,2]
[322905399,1713491457698,-1006.96,0.00016438,2]
[322905400,1713491457707,-2280.44,0.00016438,2]
[322905401,1713491457717,-7627.42,0.00016438,2]
[322905402,1713491457728,-1263.54,0.00016438,2]
[322905403,1713491457737,-500.0,0.00016438,2]
[322905404,1713491457747,-500.0,0.00016438,2]
[322905405,1713491457757,-3178.34,0.00016438,2]
[322905406,1713491457766,-1000.54,0.00016438,2]
[322905407,1713491457776,-5448.28,0.00016438,2]
[322905408,1713491457787,-1790.03,0.00016438,2]
[322905409,1713491457796,-500.0,0.00016438,2]
[322905410,1713491457806,-3803.83,0.00016438,2]
[322905411,1713491457816,-500.0,0.00016438,2]
[322905412,1713491457826,-500.0,0.00016438,2]
[322905413,1713491457835,-549.33,0.00016438,2]
[322905414,1713491457844,-2914.09,0.00016438,2]
[322905415,1713491457855,-1071.59,0.00016438,2]
[322905416,1713491457865,-500.0,0.00016438,2]
[322905417,1713491457877,-500.0,0.00016438,2]
[322905418,1713491457886,-500.0,0.00016438,2]
[322905419,1713491457895,-1015.37,0.00016438,2]
[322905420,1713491457905,-500.0,0.00016438,2]
[322905421,1713491457915,-506.72599845,0.00016438,2]
[322905422,1713491457924,-1406.9,0.00016438,2]
[322905423,1713491457933,-723.68,0.00016438,2]
[322905424,1713491457944,-500.0,0.00016438,2]
[322905425,1713491457953,-2192.23,0.00016438,2]
[322905426,1713491457963,-1282.97,0.00016438,2]
[322905427,1713491457974,-15151.61,0.00016438,2]
[322905428,1713491457984,-500.0,0.00016438,2]
[322905429,1713491457993,-500.0,0.00016438,2]
[322905430,1713491458005,-3363.59,0.00016438,2]
[322905431,1713491458015,-2144.82,0.00016438,2]
[322905432,1713491458024,-500.0,0.00016438,2]
[322905433,1713491458035,-7818.22,0.00016438,2]
[322905434,1713491458046,-500.0,0.00016438,2]
[322905435,1713491458056,-4904.14,0.00016438,2]
[322905436,1713491458066,-3778.75,0.00016438,2]
[322905437,1713491458076,-500.0,0.00016438,2]
[322905438,1713491458087,-543.35,0.00016438,2]
[322905439,1713491458097,-5508.48,0.00016438,2]
[322905440,1713491458107,-3244.68,0.00016438,2]
[322905441,1713491458117,-500.0,0.00016438,2]
[322905442,1713491458127,-1025.63,0.00016438,2]
[322905443,1713491458138,-500.0,0.00016438,2]
[322905444,1713491458149,-758.34,0.00016438,2]
[322905445,1713491458159,-702.96,0.00016438,2]
[322905446,1713491458170,-1611.69,0.00016438,2]
[322905447,1713491458180,-500.0,0.00016438,2]
[322905448,1713491458190,-607.97,0.00016438,2]
[322905449,1713491458201,-1363.35,0.00016438,2]
[322905450,1713491458211,-500.0,0.00016438,2]
[322905451,1713491458221,-500.0,0.00016438,2]
[322905452,1713491458232,-1394.89,0.00016438,2]
[322905453,1713491458244,-500.0,0.00016438,2]
[322905454,1713491458254,-6836.37,0.00016438,2]
[322905455,1713491458268,-500.0,0.00016438,2]
[322905456,1713491458278,-500.0,0.00016438,2]
[322905457,1713491458291,-500.0,0.00016438,2]
[322905458,1713491458302,-500.0,0.00016438,2]
[322905459,1713491458315,-1614.93,0.00016438,2]
[322905460,1713491458327,-1095.1,0.00016438,2]
[322905461,1713491458339,-595.91983085,0.00016438,2]
[322905462,1713491458349,-20676.4,0.00016438,2]
[322905463,1713491458360,-500.0,0.00016438,2]
[322905464,1713491458369,-874.15,0.00016438,2]
[322905465,1713491458379,-748.63,0.00016438,2]
[322905466,1713491458391,-2337.5,0.00016438,2]
[322905467,1713491458401,-593.7,0.00016438,2]
[322905468,1713491458414,-500.0,0.00016438,2]
[322905469,1713491458425,-509.53,0.00016438,2]
[322905470,1713491458437,-500.0,0.00016438,2]
[322905471,1713491458447,-500.0,0.00016438,2]
[322905472,1713491458456,-974.33,0.00016438,2]
[322905473,1713491458467,-500.0,0.00016438,2]
[322905474,1713491458478,-500.0,0.00016438,2]
[322905475,1713491458488,-500.0,0.00016438,2]
[322905476,1713491458499,-13602.31,0.00016438,2]
[322905477,1713491458509,-1402.78,0.00016438,2]
[322905478,1713491458520,-7367.05,0.00016438,2]
[322905479,1713491458531,-4653.58,0.00016438,2]
[322905480,1713491458541,-1378.84,0.00016438,2]
[322905481,1713491458552,-645.41,0.00016438,2]
[322905482,1713491458563,-500.0,0.00016438,2]
[322905483,1713491458575,-1697.3,0.00016438,2]
[322905484,1713491458585,-500.0,0.00016438,2]
[322905485,1713491458596,-2905.53,0.00016438,2]
[322905486,1713491458607,-500.0,0.00016438,2]
[322905487,1713491458617,-500.0,0.00016438,2]
[322905488,1713491458629,-500.0,0.00016438,2]
[322905489,1713491458638,-3136.38,0.00016438,2]
[322905490,1713491458649,-1591.54,0.00016438,2]
[322905491,1713491458658,-9621.09,0.00016438,2]
[322905492,1713491458668,-500.0,0.00016438,2]
[322905493,1713491458678,-1478.9,0.00016438,2]
[322905494,1713491458688,-636.98,0.00016438,2]
[322905495,1713491458697,-588.03,0.00016438,2]
[322905496,1713491458707,-602.92,0.00016438,2]
[322905497,1713491458717,-7540.23,0.00016438,2]
[322905498,1713491458730,-500.0,0.00016438,2]
[322905499,1713491458740,-535.55563851,0.00016438,2]
[322905500,1713491458750,-500.0,0.00016438,2]
[322905501,1713491458759,-1363.69,0.00016438,2]
[322905502,1713491458769,-585.26,0.00016438,2]
[322905503,1713491458779,-828.74,0.00016438,2]
[322905504,1713491458789,-21483.6,0.00016438,2]
[322905505,1713491458798,-1344.67,0.00016438,2]
[322905506,1713491458809,-502.38364661,0.00016438,2]
[322905507,1713491458819,-500.0,0.00016438,2]
[322905508,1713491458829,-500.0,0.00016438,2]
[322905509,1713491458838,-500.0,0.00016438,2]
[322905510,1713491458848,-1805.78,0.00016438,2]
[322905511,1713491458857,-226.22889067,0.00016438,2]
[322905512,1713491458867,-10349.2,0.00016438,2]
[322905513,1713491458877,-500.0,0.00016438,2]
[322905514,1713491458889,-16084.51,0.00016438,2]
[322905515,1713491458898,-500.0,0.00016438,2]
[322905516,1713491458907,-837.62,0.00016438,2]
[322905517,1713491458916,-5379.3,0.00016438,2]
[322905518,1713491458927,-7588.58,0.00016438,2]
[322905519,1713491458935,-500.0,0.00016438,2]
[322905520,1713491458945,-5020.94,0.00016438,2]
[322905521,1713491458956,-1707.24,0.00016438,2]
[322905522,1713491458966,-500.0,0.00016438,2]
[322905523,1713491458977,-1059.28,0.00016438,2]
[322905524,1713491458986,-1948.14,0.00016438,2]
[322905525,1713491458995,-8355.66,0.00016438,2]
[322905526,1713491459004,-500.0,0.00016438,2]
[322905527,1713491459013,-500.0,0.00016438,2]
[322905528,1713491459023,-13543.68,0.00016438,2]
[322905529,1713491459032,-500.0,0.00016438,2]
[322905530,1713491459041,-6159.56,0.00016438,2]
[322905531,1713491459051,-500.0,0.00016438,2]
[322905532,1713491459060,-500.0,0.00016438,2]
[322905533,1713491459070,-500.0,0.00016438,2]
[322905534,1713491459079,-500.0,0.00016438,2]
[322905535,1713491459088,-6242.06,0.00016438,2]
[322905536,1713491459097,-3245.22,0.00016438,2]
[322905537,1713491459106,-500.0,0.00016438,2]
[322905538,1713491459115,-500.0,0.00016438,2]
[322905539,1713491459124,-500.0,0.00016438,2]
[322905540,1713491459133,-965.37,0.00016438,2]
[322905541,1713491459142,-43566.00813041,0.00016438,2]
[322905542,1713491459199,-76264.35186959,0.00016438,2]
[322905543,1713491459209,-1296.19,0.00016438,2]
[322905544,1713491459218,-3145.32,0.00016438,2]
[322905545,1713491459229,-989.18,0.00016438,2]
[322905546,1713491459239,-758.36,0.00016438,2]
[322905547,1713491459248,-406.88427741,0.00016438,2]
[322905548,1713491459257,-3119.65,0.00016438,2]
[322905549,1713491459267,-1596.37,0.00016438,2]
[322905550,1713491459276,-500.0,0.00016438,2]
[322905551,1713491459286,-1113.65,0.00016438,2]
[322905552,1713491459295,-5319.17,0.00016438,2]
[322905553,1713491459303,-500.0,0.00016438,2]
[322905554,1713491459313,-1378.08,0.00016438,2]
[322905555,1713491459322,-4519.54,0.00016438,2]
[322905556,1713491459332,-500.0,0.00016438,2]
[322905557,1713491459340,-7307.32,0.00016438,2]
[322905558,1713491459349,-9501.05,0.00016438,2]
[322905559,1713491459359,-1138.17,0.00016438,2]
[322905560,1713491459368,-500.0,0.00016438,2]
[322905561,1713491459378,-8701.73,0.00016438,2]
[322905562,1713491459386,-500.0,0.00016438,2]
[322905563,1713491459395,-368.86651141,0.00016438,2]
[322905564,1713491459404,-500.0,0.00016438,2]
[322905565,1713491459413,-5445.04,0.00016438,2]
[322905566,1713491459423,-500.0,0.00016438,2]
[322905567,1713491459432,-500.0,0.00016438,2]
[322905568,1713491459441,-500.0,0.00016438,2]
[322905569,1713491459450,-500.0,0.00016438,2]
[322905570,1713491459459,-22792.97,0.00016438,2]
[322905571,1713491459468,-1046.58,0.00016438,2]
[322905572,1713491459481,-500.0,0.00016438,2]
[322905573,1713491459490,-9237.27,0.00016438,2]
[322905574,1713491459499,-4357.08,0.00016438,2]
[322905575,1713491459508,-2374.76,0.00016438,2]
[322905576,1713491459519,-1305.94,0.00016438,2]
[322905577,1713491459527,-789.52,0.00016438,2]
[322905578,1713491459536,-1309.08,0.00016438,2]
[322905579,1713491459545,-5774.64,0.00016438,2]
[322905580,1713491459554,-500.0,0.00016438,2]
[322905581,1713491459563,-594.51142592,0.00016438,2]
[322905582,1713491459573,-15475.9,0.00016438,2]
[322905583,1713491459582,-6195.95,0.00016438,2]
[322905584,1713491459591,-1000.0,0.00016438,2]
[322905585,1713491459600,-500.0,0.00016438,2]
[322905586,1713491459610,-500.0,0.00016438,2]
[322905587,1713491459619,-518.54,0.00016438,2]
[322905588,1713491459628,-500.0,0.00016438,2]
[322905589,1713491459637,-500.0,0.00016438,2]
[322905590,1713491459646,-500.0,0.00016438,2]
[322905591,1713491459655,-500.0,0.00016438,2]
[322905592,1713491459664,-5082.37,0.00016438,2]
[322905593,1713491459673,-500.0,0.00016438,2]
[322905594,1713491459682,-500.0,0.00016438,2]
[322905595,1713491459691,-500.0,0.00016438,2]
[322905596,1713491459700,-12606.54,0.00016438,2]
[322905597,1713491459709,-1107.24,0.00016438,2]
[322905598,1713491459719,-55273.18953906,0.00016438,2]
[322905599,1713491459733,-327.38634259,0.00016438,2]
[322905600,1713491459758,-655.97934,0.00016438,2]
[322905601,1713491460683,-687.10463362,0.00016436,2]
[322905602,1713491460692,-30407.53477835,0.00016438,2]
[322905603,1713491460701,-1620.62,0.00016438,2]
[322905604,1713491460711,-500.0,0.00016438,2]
[322905605,1713491460722,-1519.4,0.00016438,2]
[322905606,1713491460732,-500.0,0.00016438,2]
[322905607,1713491460742,-7712.58,0.00016438,2]
[322905608,1713491460751,-500.0,0.00016438,2]
[322905609,1713491460760,-6747.91455528,0.00016438,2]
[322905610,1713491460773,-3751.02544472,0.00016438,2]
[322905611,1713491460782,-2202.82382726,0.00016438,2]
[322905612,1713491461090,-272.97617274,0.00016438,2]
[322905613,1713491461100,-1264.69,0.00016438,2]
[322905614,1713491461111,-500.0,0.00016438,2]
[322905615,1713491461122,-1110.81,0.00016438,2]
[322905616,1713491461133,-500.0,0.00016438,2]
[322905617,1713491461143,-1303.42,0.00016438,2]
[322905618,1713491461155,-539.73,0.00016438,2]
[322905619,1713491461166,-500.0,0.00016438,2]
[322905620,1713491461175,-500.0,0.00016438,2]
[322905621,1713491461186,-500.0,0.00016438,2]
[322905622,1713491461196,-500.0,0.00016438,2]
[322905623,1713491461207,-2691.64,0.00016438,2]
[322905624,1713491461218,-500.0,0.00016438,2]
[322905625,1713491461232,-500.0,0.00016438,2]
[322905626,1713491461241,-500.0,0.00016438,2]
[322905627,1713491461253,-500.0,0.00016438,2]
[322905628,1713491461263,-500.0,0.00016438,2]
[322905629,1713491461273,-2987.87,0.00016438,2]
[322905630,1713491461282,-3210.37676773,0.00016438,2]
[322905631,1713491461362,-16048.12323227,0.00016438,2]
[322905632,1713491461371,-500.0,0.00016438,2]
[322905633,1713491461381,-14555.4,0.00016438,2]
[322905634,1713491461390,-2133.4,0.00016438,2]
[322905635,1713491461399,-6205.86,0.00016438,2]
[322905636,1713491461409,-1849.34,0.00016438,2]
[322905637,1713491461418,-6110.31,0.00016438,2]
[322905638,1713491461428,-171.54676895,0.00016438,2]
[322905639,1713491461437,-2974.1,0.00016438,2]
[322905640,1713491461446,-500.0,0.00016438,2]
[322905641,1713491461456,-618.66,0.00016438,2]
[322905642,1713491461465,-1419.6,0.00016438,2]
[322905643,1713491461476,-500.0,0.00016438,2]
[322905644,1713491461485,-500.0,0.00016438,2]
[322905645,1713491461495,-5189.3,0.00016438,2]
[322905646,1713491461504,-630.49564347,0.00016438,2]
[322905647,1713491461513,-17328.61789045,0.00016438,2]
[322905648,1713491461535,-6716.66210955,0.00016438,2]
[322905649,1713491461545,-1370.69,0.00016438,2]
[322905650,1713491461555,-500.0,0.00016438,2]
[322905651,1713491461564,-500.0,0.00016438,2]
[322905652,1713491461573,-349.49612757,0.00016438,2]
[322905653,1713491461583,-500.0,0.00016438,2]
[322905654,1713491461593,-500.0,0.00016438,2]
[322905655,1713491461603,-1897.95,0.00016438,2]
[322905656,1713491461612,-500.0,0.00016438,2]
[322905657,1713491461623,-5763.24,0.00016438,2]
[322905658,1713491461633,-500.0,0.00016438,2]
[322905659,1713491461642,-17733.24,0.00016438,2]
[322905660,1713491461651,-500.0,0.00016438,2]
[322905661,1713491461662,-1450.88,0.00016438,2]
[322905662,1713491461673,-3474.79,0.00016438,2]
[322905663,1713491461684,-5131.11,0.00016438,2]
[322905664,1713491461693,-500.0,0.00016438,2]
[322905665,1713491461703,-1785.23,0.00016438,2]
[322905666,1713491461713,-4447.52,0.00016438,2]
[322905667,1713491461724,-500.0,0.00016438,2]
[322905668,1713491461733,-500.0,0.00016438,2]
[322905669,1713491461742,-870.99,0.00016438,2]
[322905670,1713491461751,-4966.03,0.00016438,2]
[322905671,1713491461760,-12838.34,0.00016438,2]
[322905672,1713491461769,-4947.68,0.00016438,2]
[322905673,1713491461778,-500.0,0.00016438,2]
[322905674,1713491461788,-10169.42,0.00016438,2]
[322905675,1713491461798,-3051.42,0.00016438,2]
[322905676,1713491461807,-500.0,0.00016438,2]
[322905677,1713491461816,-11266.21252744,0.00016438,2]
[322905678,1713491461986,-255.44494906,0.00016438,2]
[322905679,1713491464557,-1482.425,0.00016438,2]
[322905680,1713491464569,-258.20241519,0.00016438,2]
[322905681,1713491464704,-575.74510831,0.00016438,2]
[322905682,1713491464714,-500.0,0.00016438,2]
[322905683,1713491464725,-716.19,0.00016438,2]
[322905684,1713491464737,-893.46,0.00016438,2]
[322905685,1713491464747,-500.0,0.00016438,2]
[322905686,1713491464756,-500.0,0.00016438,2]
[322905687,1713491464765,-500.0,0.00016438,2]
[322905688,1713491464774,-3714.68,0.00016438,2]
[322905689,1713491464784,-5001.08,0.00016438,2]
[322905690,1713491464793,-500.0,0.00016438,2]
[322905691,1713491464802,-500.0,0.00016438,2]
[322905692,1713491464812,-500.0,0.00016438,2]
[322905693,1713491464821,-1073.48,0.00016438,2]
[322905694,1713491464831,-7738.71,0.00016438,2]
[322905695,1713491464840,-8343.99212682,0.00016438,2]
[322905696,1713491466424,-11318.10787318,0.00016438,2]
[322905697,1713491466435,-557.81,0.00016438,2]
[322905698,1713491466448,-1217.06,0.00016438,2]
[322905699,1713491466464,-500.0,0.00016438,2]
[322905700,1713491466481,-1765.09,0.00016438,2]
[322905701,1713491466496,-3701.58,0.00016438,2]
[322905702,1713491466507,-500.0,0.00016438,2]
[322905703,1713491466518,-500.0,0.00016438,2]
[322905704,1713491466530,-500.0,0.00016438,2]
[322905705,1713491466541,-500.0,0.00016438,2]
[322905706,1713491466552,-500.0,0.00016438,2]
[322905707,1713491466563,-2883.2,0.00016438,2]
[322905708,1713491466574,-500.0,0.00016438,2]
[322905709,1713491466585,-500.0,0.00016438,2]
[322905710,1713491466596,-500.0,0.00016438,2]
[322905711,1713491466607,-500.0,0.00016438,2]
[322905712,1713491466618,-500.0,0.00016438,2]
[322905713,1713491466629,-500.0,0.00016438,2]
[322905714,1713491466639,-522.5,0.00016438,2]
[322905715,1713491466650,-500.0,0.00016438,2]
[322905716,1713491466662,-500.0,0.00016438,2]
[322905717,1713491466673,-7305.8,0.00016438,2]
[322905718,1713491466683,-570.43,0.00016438,2]
[322905719,1713491466694,-150.83109695,0.00016438,2]
[322905720,1713491466707,-500.0,0.00016438,2]
[322905721,1713491466718,-500.0,0.00016438,2]
[322905722,1713491466736,-3633.327,0.00016438,2]
[322905723,1713491466747,-171.720385,0.00016438,2]
[322905724,1713491466758,-1000.0,0.00016438,2]
[322905725,1713491466769,-1000.0,0.00016438,2]
[322905726,1713491466781,-1000.0,0.00016438,2]
[322905727,1713491466792,-1015.0,0.00016438,2]
[322905728,1713491466802,-1000.0,0.00016438,2]
[322905729,1713491466814,-1000.0,0.00016438,2]
[322905730,1713491466825,-806.15900147,0.00016438,2]
[322905731,1713491466840,-193.84099853,0.00016438,2]
[322905732,1713491466852,-1000.0,0.00016438,2]
[322905733,1713491466863,-854.0,0.00016438,2]
[322905734,1713491466876,-151.0,0.00016438,2]
[322905735,1713491466886,-151.0,0.00016438,2]
[322905736,1713491466897,-152.316582,0.00016438,2]
[322905737,1713491466907,-151.0,0.00016438,2]
[322905738,1713491466919,-151.0,0.00016438,2]
[322905739,1713491466930,-164.871906,0.00016438,2]
[322905740,1713491466942,-1000.0,0.00016438,2]
[322905741,1713491466953,-1000.0,0.00016438,2]
[322905742,1713491466967,-1000.0,0.00016438,2]
[322905743,1713491466984,-1000.0,0.00016438,2]
[322905744,1713491466995,-1000.0,0.00016438,2]
[322905745,1713491467005,-1000.0,0.00016438,2]
[322905746,1713491467016,-151.0,0.00016438,2]
[322905747,1713491467027,-151.0,0.00016438,2]
[322905748,1713491467037,-151.0,0.00016438,2]
[322905749,1713491467047,-151.0,0.00016438,2]
[322905750,1713491467057,-151.0,0.00016438,2]
[322905751,1713491467068,-151.0,0.00016438,2]
[322905752,1713491467079,-276.330576,0.00016438,2]
[322905753,1713491467089,-151.0,0.00016438,2]
[322905754,1713491467100,-152.023354,0.00016438,2]
[322905755,1713491467112,-151.0,0.00016438,2]
[322905756,1713491467123,-151.0,0.00016438,2]
[322905757,1713491467134,-151.0,0.00016438,2]
[322905758,1713491467145,-151.0,0.00016438,2]
[322905759,1713491467156,-168.451101,0.00016438,2]
[322905760,1713491467166,-165.704565,0.00016438,2]
[322905761,1713491467178,-151.0,0.00016438,2]
[322905762,1713491467189,-151.0,0.00016438,2]
[322905763,1713491467199,-151.0,0.00016438,2]
[322905764,1713491467209,-151.0,0.00016438,2]
[322905765,1713491467220,-151.0,0.00016438,2]
[322905766,1713491467235,-242.990714,0.00016438,2]
[322905767,1713491467246,-1000.0,0.00016438,2]
[322905768,1713491467256,-1000.0,0.00016438,2]
[322905769,1713491467266,-1000.0,0.00016438,2]
[322905770,1713491467277,-1000.0,0.00016438,2]
[322905771,1713491467287,-1000.0,0.00016438,2]
[322905772,1713491467298,-331.96337987,0.00016438,2]
[322905773,1713491467350,-271.48926916,0.00016438,2]
[322905774,1713491541003,624.48,0.00013515,2]
[322905775,1713491556698,418.1622,0.00015501,2]
[322905776,1713491568635,500.0,0.00015407,2]
[322905777,1713491570811,5148.73,0.00015407,2]
[322905778,1713491606675,1350.89,0.00015388,2]
[322905779,1713491643303,250.0,0.00015367,2]
[322905780,1713491674424,152.13,0.0001611,15]
[322905783,1713491683962,6871.86971836,0.000243,30]